bitfinex/quotes_BTCUSD_20241107
["timestamp","ask_amount","ask_price","bid_price","bid_amount"]
[1730992988745,0.000833,75389.0,75388.0,0.78599361]
[1730992988963,0.014833,75389.0,75388.0,0.78699361]
[1730992989176,0.014833,75389.0,75388.0,0.78799361]
[1730992989418,0.000833,75389.0,75388.0,0.78799361]
[1730992990480,0.000833,75389.0,75388.0,0.78699361]
[1730992990697,0.000833,75389.0,75388.0,0.78799361]
[1730992991133,0.014833,75389.0,75388.0,0.78699361]
[1730992991568,0.000833,75389.0,75388.0,0.78799361]
[1730992991805,0.014833,75389.0,75388.0,0.78799361]
[1730992992015,0.000833,75389.0,75388.0,0.86679297]
[1730992992245,0.000833,75389.0,75388.0,0.78699361]
[1730992992466,0.004833,75389.0,75388.0,0.55916177]
[1730992992891,0.004833,75389.0,75388.0,0.78699361]
[1730992993576,4e-05,75400.0,75399.0,0.37233184]
[1730992993803,4e-05,75400.0,75399.0,0.41156502]
[1730992994034,4e-05,75400.0,75399.0,0.82653138]
[1730992994311,4e-05,75400.0,75399.0,0.9587724]
[1730992994536,0.19994268,75405.0,75404.0,0.017]
[1730992994790,0.19994268,75405.0,75404.0,0.02908636]
[1730992995010,0.100833,75409.0,75404.0,0.02908636]
[1730992995011,0.100833,75409.0,75408.0,0.002]
[1730992995230,0.100833,75409.0,75408.0,0.01408636]
[1730992995447,0.100833,75409.0,75408.0,0.42192636]
[1730992996968,0.100833,75409.0,75408.0,0.42692636]
[1730992997264,0.100833,75409.0,75408.0,0.40984]
[1730992997465,0.100833,75409.0,75408.0,0.41492247]
[1730992997673,0.101833,75409.0,75408.0,0.42192712]
[1730992997883,0.101833,75409.0,75408.0,0.46491776]
[1730992998086,0.101833,75409.0,75408.0,0.46491686]
[1730992998314,0.100833,75409.0,75408.0,0.45283225]
[1730992998537,0.114833,75409.0,75408.0,0.45383225]
[1730992998746,0.114833,75409.0,75408.0,0.41184]
[1730992998959,0.100833,75409.0,75408.0,0.41084]
[1730992999182,0.100833,75409.0,75408.0,0.4219269]
[1730992999183,0.114833,75409.0,75408.0,0.4219269]
[1730992999452,0.114833,75409.0,75408.0,0.4209269]
[1730992999677,0.100833,75409.0,75408.0,0.4209269]
[1730993000120,0.100833,75409.0,75408.0,0.4149269]
[1730993000343,0.100833,75409.0,75408.0,0.4209269]
[1730993000551,0.100833,75409.0,75408.0,0.4109269]
[1730993000773,0.100833,75409.0,75408.0,0.4099269]
[1730993000958,0.114833,75409.0,75408.0,0.4109269]
[1730993001202,0.100833,75409.0,75408.0,0.4149269]
[1730993001412,0.100833,75409.0,75408.0,0.4099269]
[1730993001631,0.114833,75409.0,75408.0,0.4119269]
[1730993002063,0.15821135,75409.0,75408.0,0.4119269]
[1730993002270,0.27645237,75409.0,75408.0,0.4109269]
[1730993002702,0.29045237,75409.0,75408.0,0.4109269]
[1730993003146,0.29045237,75409.0,75408.0,0.4119269]
[1730993003147,0.42306237,75409.0,75408.0,0.4119269]
[1730993003357,0.52306237,75409.0,75408.0,0.39984]
[1730993003561,0.52306237,75409.0,75408.0,0.39884]
[1730993003772,0.39045237,75409.0,75408.0,0.39884]
[1730993003981,0.39045237,75409.0,75408.0,0.41197909]
[1730993004192,0.37645237,75409.0,75408.0,0.41097972]
[1730993004402,0.50906237,75409.0,75408.0,0.40997972]
[1730993004615,0.52306237,75409.0,75408.0,0.39984]
[1730993004845,0.61762675,75409.0,75408.0,0.41098924]
[1730993005051,0.54123182,75409.0,75408.0,0.41198924]
[1730993005261,0.82823182,75409.0,75408.0,0.39984]
[1730993005726,1.08106366,75409.0,75408.0,0.25859163]
[1730993005926,1.92616373,75409.0,75408.0,0.17620551]
[1730993006140,1.92616373,75409.0,75408.0,0.04682]
[1730993006577,1.92616373,75409.0,75376.0,0.24714268]
[1730993006578,0.1,75391.0,75386.0,0.19994268]
[1730993006851,0.232648,75387.0,75386.0,0.19994268]
[1730993007068,0.36488902,75387.0,75386.0,0.01217599]
[1730993007297,0.55230124,75387.0,75386.0,0.37989094]
[1730993007504,0.78013308,75387.0,75386.0,0.37989094]
[1730993007718,0.78013308,75387.0,75386.0,0.37616102]
[1730993007940,0.82237161,75387.0,75386.0,0.37816102]
[1730993008156,0.232678,75370.0,75369.0,0.19994268]
[1730993008369,1.20411902,75370.0,75369.0,0.19994268]
[1730993008582,1.33679902,75370.0,75369.0,0.265357]
[1730993008771,1.46947702,75370.0,75369.0,0.265357]
[1730993009449,1.52738018,75370.0,75369.0,0.265357]
[1730993009892,1.07144102,75370.0,75369.0,0.265357]
[1730993010113,1.20411902,75370.0,75369.0,0.265357]
[1730993010753,1.21811902,75370.0,75369.0,0.266357]
[1730993010979,1.24631918,75370.0,75369.0,0.265357]
[1730993011419,1.27431918,75370.0,75369.0,0.266357]
[1730993011649,1.37441141,75370.0,75369.0,0.266357]
[1730993011864,2.37524325,75370.0,75369.0,0.25673181]
[1730993012090,2.4074127,75370.0,75369.0,0.20419181]
[1730993012306,1.6344127,75370.0,75369.0,0.11532662]
[1730993012546,1.92958086,75370.0,75369.0,0.07880862]
[1730993012764,1.91558086,75370.0,75369.0,0.05950862]
[1730993012979,1.91558086,75370.0,75369.0,0.03768862]
[1730993013240,1.92958086,75370.0,75369.0,0.0203]
[1730993013454,2.61188086,75370.0,75369.0,0.0193]
[1730993013688,2.49778863,75370.0,75369.0,0.0183]
[1730993013897,2.49778863,75370.0,75348.0,0.19994268]
[1730993013898,0.023,75350.0,75348.0,0.19994268]
[1730993014115,1.490415,75349.0,75348.0,0.19994268]
[1730993014344,0.265445,75345.0,75337.0,0.19994268]
[1730993014559,0.265465,75340.0,75337.0,0.19994268]
[1730993014780,0.265465,75340.0,75327.0,0.20494268]
[1730993014781,0.232733,75339.0,75338.0,0.39819]
[1730993015003,0.39714347,75339.0,75338.0,0.39819]
[1730993015227,0.48326219,75339.0,75338.0,0.39819]
[1730993015459,0.39714347,75339.0,75338.0,0.39545374]
[1730993015921,0.43298552,75339.0,75338.0,0.39545374]
[1730993016621,0.39714347,75339.0,75338.0,0.39545374]
[1730993016836,0.41114347,75339.0,75338.0,0.39645374]
[1730993017026,0.62348548,75339.0,75338.0,0.39645374]
[1730993017279,0.88248548,75339.0,75338.0,0.39545374]
[1730993017498,0.88248548,75339.0,75338.0,0.39645374]
[1730993017499,0.76424271,75339.0,75338.0,0.39645374]
[1730993018147,0.77824271,75339.0,75338.0,0.39645374]
[1730993018359,0.76424271,75339.0,75338.0,0.39645374]
[1730993018579,0.74124271,75339.0,75338.0,0.39645374]
[1730993018787,0.74124271,75339.0,75338.0,0.39545374]
[1730993019009,0.49124271,75339.0,75338.0,0.39545374]
[1730993019261,0.33606766,75339.0,75338.0,0.39645374]
[1730993019704,0.32206766,75339.0,75338.0,0.39545374]
[1730993020160,0.32206766,75339.0,75338.0,0.39645374]
[1730993020161,0.30389821,75339.0,75338.0,0.39645374]
[1730993020383,0.30389821,75339.0,75338.0,0.39811774]
[1730993021057,0.30389821,75339.0,75338.0,0.47841774]
[1730993021282,0.07165719,75339.0,75338.0,0.47841774]
[1730993021766,1.2347,75349.0,75348.0,0.005]
[1730993022042,0.19994268,75356.0,75355.0,0.007]
[1730993022275,0.19994268,75364.0,75363.0,0.142691]
[1730993022500,0.3305,75379.0,75372.0,0.144675]
[1730993022717,0.132641,75391.0,75372.0,0.221775]
[1730993022940,0.04276783,75382.0,75378.0,0.132663]
[1730993023149,0.04276783,75382.0,75373.0,0.002]
[1730993023150,0.13224102,75380.0,75373.0,0.01]
[1730993023363,0.17338038,75380.0,75379.0,0.40073]
[1730993023574,0.13224102,75380.0,75379.0,0.40073]
[1730993025070,0.26490202,75380.0,75379.0,0.40073]
[1730993025911,0.37790202,75380.0,75379.0,0.40173]
[1730993026126,0.37790202,75380.0,75379.0,0.40273]
[1730993026127,0.37890202,75380.0,75379.0,0.40273]
[1730993028053,1.13464407,75380.0,75379.0,0.29449744]
[1730993028266,1.12064407,75380.0,75379.0,0.21144149]
[1730993028510,1.38112107,75380.0,75379.0,0.15296149]
[1730993028729,1.38312107,75380.0,75379.0,0.15396149]
[1730993028977,1.38312107,75380.0,75379.0,0.10562149]
[1730993028978,1.38212107,75380.0,75379.0,0.10562149]
[1730993029190,1.13931702,75380.0,75379.0,0.10562149]
[1730993029403,1.14031702,75380.0,75379.0,0.10662149]
[1730993029654,1.13731702,75380.0,75379.0,0.10462149]
[1730993030080,1.13931702,75380.0,75379.0,0.10562149]
[1730993030287,1.27155979,75380.0,75379.0,0.10562149]
[1730993030496,1.30900184,75380.0,75379.0,0.10662149]
[1730993031349,1.30700184,75380.0,75379.0,0.10562149]
[1730993031554,1.32000184,75380.0,75379.0,0.10462149]
[1730993032017,1.32083484,75380.0,75379.0,0.10462149]
[1730993032287,1.30683484,75380.0,75379.0,0.10462149]
[1730993032506,1.33483484,75380.0,75379.0,0.10462149]
[1730993032722,0.63853484,75380.0,75379.0,0.10462149]
[1730993035327,0.61453484,75380.0,75379.0,0.10462149]
[1730993035718,0.6166427,75380.0,75379.0,0.10462149]
[1730993035926,0.7809977,75380.0,75379.0,0.10462149]
[1730993036145,0.7472727,75380.0,75379.0,0.07928346]
[1730993036345,0.6306427,75380.0,75379.0,0.07928346]
[1730993036634,0.51239993,75380.0,75379.0,0.08028346]
[1730993037768,0.61239993,75380.0,75379.0,0.08028346]
[1730993037970,0.58229207,75380.0,75379.0,0.08028346]
[1730993038184,0.80262607,75380.0,75379.0,0.08028346]
[1730993038402,0.71931807,75380.0,75379.0,0.08028346]
[1730993038632,0.71931807,75380.0,75379.0,0.01559706]
[1730993038633,0.98652048,75380.0,75379.0,0.01559706]
[1730993038856,1.005678,75370.0,75369.0,0.001666]
[1730993039086,5.33245086,75370.0,75369.0,0.20160868]
[1730993039294,1.005694,75361.0,75360.0,0.19994268]
[1730993039501,2.15276686,75361.0,75360.0,0.19994268]
[1730993039708,2.15276686,75361.0,75348.0,0.0457]
[1730993039709,0.232708,75353.0,75348.0,0.0457]
[1730993039974,1.39994902,75353.0,75348.0,0.0457]
[1730993040202,0.232715,75349.0,75348.0,0.0457]
[1730993040422,0.26495602,75349.0,75348.0,0.0457]
[1730993040636,0.26495602,75349.0,75339.0,0.19994268]
[1730993040637,0.132731,75340.0,75339.0,0.19994268]
[1730993040861,0.132733,75339.0,75338.0,0.001664]
[1730993041094,0.265459,75341.0,75339.0,0.13322598]
[1730993041304,0.132731,75340.0,75339.0,0.13322598]
[1730993041924,0.260731,75340.0,75339.0,0.13322598]
[1730993042560,0.360731,75340.0,75339.0,0.13322598]
[1730993042788,0.346731,75340.0,75339.0,0.13322598]
[1730993043017,0.48128013,75340.0,75339.0,0.13322598]
[1730993043236,0.51069192,75340.0,75339.0,0.13322598]
[1730993043442,0.37796092,75340.0,75339.0,0.13322598]
[1730993043648,0.51069192,75340.0,75339.0,0.13322598]
[1730993044074,0.37796092,75340.0,75339.0,0.13322598]
[1730993044282,0.61557781,75340.0,75339.0,0.13322598]
[1730993044493,0.39196092,75340.0,75339.0,0.13322598]
[1730993044707,0.52469192,75340.0,75339.0,0.13322598]
[1730993044917,0.58413397,75340.0,75339.0,0.13322598]
[1730993045404,0.59813397,75340.0,75339.0,0.13322598]
[1730993045619,0.61424183,75340.0,75339.0,0.13322598]
[1730993045829,0.7464846,75340.0,75339.0,0.13322598]
[1730993046003,0.7324846,75340.0,75339.0,0.13322598]
[1730993046241,0.78597802,75340.0,75339.0,0.13322598]
[1730993046451,0.71004255,75340.0,75339.0,0.13322598]
[1730993046894,1.36731394,75340.0,75339.0,0.13322598]
[1730993047108,1.29769192,75340.0,75339.0,0.13322598]
[1730993047328,0.53869192,75340.0,75339.0,0.13322598]
[1730993047773,0.40596092,75340.0,75339.0,0.13322598]
[1730993047981,0.29196092,75340.0,75339.0,0.17832598]
[1730993048195,0.30365281,75340.0,75339.0,0.17832598]
[1730993048606,0.28965281,75340.0,75339.0,0.17832598]
[1730993049021,0.114,75340.0,75339.0,0.18832598]
[1730993049273,0.128,75340.0,75339.0,0.18832598]
[1730993049919,0.128,75340.0,75339.0,0.18332598]
[1730993050157,0.114,75340.0,75339.0,0.18832598]
[1730993050551,0.214,75340.0,75339.0,0.18332598]
[1730993050744,0.38509122,75340.0,75339.0,0.18332598]
[1730993050971,0.38509122,75340.0,75339.0,0.17832598]
[1730993050972,0.50382222,75340.0,75339.0,0.17832598]
[1730993051129,0.51782222,75340.0,75339.0,0.17832598]
[1730993051325,0.53182222,75340.0,75339.0,0.17832598]
[1730993051559,0.34624102,75340.0,75339.0,0.17832598]
[1730993051769,0.33224102,75340.0,75339.0,0.17832598]
[1730993051978,0.128,75340.0,75339.0,0.32605898]
[1730993052195,0.5307,75349.0,75348.0,0.0853]
[1730993052415,0.5307,75349.0,75348.0,0.269317]
[1730993052619,0.5307,75349.0,75348.0,0.73767]
[1730993053097,0.5307,75349.0,75348.0,0.88256581]
[1730993053283,0.3085,75353.0,75352.0,0.14771]
[1730993053506,0.3085,75353.0,75352.0,0.15988881]
[1730993053845,0.3085,75353.0,75352.0,0.76095138]
[1730993054691,0.3085,75353.0,75352.0,0.62824138]
[1730993055099,0.3215,75353.0,75352.0,0.62924138]
[1730993055523,0.3355,75353.0,75352.0,0.63024138]
[1730993055735,0.336333,75353.0,75352.0,0.63024138]
[1730993056159,0.73491532,75353.0,75352.0,0.61524138]
[1730993056367,0.73491532,75353.0,75352.0,0.60306]
[1730993057170,0.61095973,75353.0,75352.0,0.60306]
[1730993057375,0.61095973,75353.0,75352.0,0.61306]
[1730993057376,0.436333,75353.0,75352.0,0.61306]
[1730993057583,0.336333,75353.0,75352.0,0.76496725]
[1730993057787,0.336333,75353.0,75352.0,0.87816687]
[1730993057998,0.336333,75353.0,75352.0,0.88016687]
[1730993058211,0.04187629,75365.0,75364.0,0.005]
[1730993058419,0.24181897,75365.0,75364.0,0.28528625]
[1730993058625,0.19994268,75376.0,75374.0,0.005]
[1730993058823,0.19994268,75376.0,75375.0,0.005]
[1730993059036,0.366155,75380.0,75375.0,0.60587]
[1730993059245,0.132664,75378.0,75376.0,0.005]
[1730993059464,0.26490702,75377.0,75376.0,0.005]
[1730993059658,0.497993,75378.0,75377.0,0.33595298]
[1730993059884,0.1,75378.0,75377.0,0.33595298]
[1730993060297,0.100833,75380.0,75378.0,0.005]
[1730993060512,0.233494,75380.0,75379.0,0.005]
[1730993060716,0.233494,75380.0,75379.0,0.60581]
[1730993061556,0.333494,75380.0,75379.0,0.60581]
[1730993061754,0.333494,75380.0,75379.0,0.60681]
[1730993061972,0.333494,75380.0,75379.0,0.60781]
[1730993062407,0.200833,75380.0,75379.0,0.60781]
[1730993062829,0.100833,75380.0,75379.0,0.69641]
[1730993063044,0.100833,75380.0,75379.0,0.875972]
[1730993063255,0.100833,75380.0,75379.0,0.89012849]
[1730993063474,0.100833,75380.0,75379.0,1.02236951]
[1730993063678,0.100873,75380.0,75379.0,1.15461228]
[1730993063854,0.100873,75380.0,75379.0,1.15361228]
[1730993064129,0.100873,75380.0,75379.0,1.15261228]
[1730993064332,0.100873,75380.0,75379.0,1.15361228]
[1730993064577,0.100873,75380.0,75379.0,1.17661228]
[1730993064805,0.100873,75380.0,75379.0,1.16761228]
[1730993065018,0.100873,75380.0,75379.0,0.74731]
[1730993065231,0.100873,75380.0,75379.0,0.74531]
[1730993065666,0.100873,75380.0,75379.0,0.75331]
[1730993065852,0.100873,75380.0,75379.0,0.74931]
[1730993066094,0.100913,75380.0,75379.0,0.74931]
[1730993066553,0.100953,75380.0,75379.0,0.74931]
[1730993066983,0.233654,75380.0,75379.0,0.61581]
[1730993067193,0.100993,75380.0,75379.0,0.61681]
[1730993067641,0.233694,75380.0,75379.0,0.61181]
[1730993067884,0.233734,75380.0,75379.0,0.61681]
[1730993068066,0.233686,75380.0,75379.0,0.61681]
[1730993068317,0.101025,75380.0,75379.0,0.61681]
[1730993068554,0.233686,75380.0,75379.0,0.60281]
[1730993068766,0.27613654,75380.0,75379.0,0.60281]
[1730993069176,0.50837756,75380.0,75379.0,0.60281]
[1730993070014,0.50837756,75380.0,75379.0,0.60181]
[1730993070940,0.50837756,75380.0,75379.0,0.60281]
[1730993072022,0.50837756,75380.0,75379.0,0.60181]
[1730993072436,0.50837756,75380.0,75379.0,0.60281]
[1730993073075,0.50837756,75380.0,75379.0,0.60181]
[1730993073949,0.52237756,75380.0,75379.0,0.60181]
[1730993074140,0.52237756,75380.0,75379.0,0.60081]
[1730993074584,0.50837756,75380.0,75379.0,0.60081]
[1730993074802,0.52137756,75380.0,75379.0,0.60181]
[1730993075012,0.53537756,75380.0,75379.0,0.60181]
[1730993075640,0.27047554,75380.0,75379.0,0.60181]
[1730993075883,0.40313654,75380.0,75379.0,0.60181]
[1730993076086,0.40313654,75380.0,75379.0,0.60681]
[1730993076289,0.27047554,75380.0,75379.0,0.60681]
[1730993076494,0.128025,75380.0,75379.0,0.61681]
[1730993076719,0.128025,75380.0,75379.0,0.61181]
[1730993076896,0.260686,75380.0,75379.0,0.61181]
[1730993077127,0.39292702,75380.0,75379.0,0.60681]
[1730993077313,0.53583814,75380.0,75379.0,0.60181]
[1730993077520,0.55883814,75380.0,75379.0,0.60181]
[1730993079514,0.55883814,75380.0,75379.0,0.603476]
[1730993081882,0.55883814,75380.0,75379.0,0.57004143]
[1730993081883,1.54166994,75380.0,75379.0,0.57004143]
[1730993082081,1.60455881,75380.0,75379.0,0.57004143]
[1730993082652,1.59055881,75380.0,75379.0,0.57004143]
[1730993082854,1.59055881,75380.0,75379.0,0.45407462]
[1730993083101,1.6400045,75380.0,75379.0,0.45507462]
[1730993083304,1.66278082,75380.0,75379.0,0.45507462]
[1730993083523,1.03838135,75380.0,75379.0,0.45507462]
[1730993083739,0.98589712,75380.0,75379.0,0.45407462]
[1730993084159,0.98589712,75380.0,75379.0,0.45307462]
[1730993084160,1.33296998,75380.0,75379.0,0.45307462]
[1730993084364,1.34696998,75380.0,75379.0,0.45307462]
[1730993084804,1.46996998,75380.0,75379.0,0.45307462]
[1730993085015,1.51583494,75380.0,75379.0,0.45307462]
[1730993085238,1.70875274,75380.0,75379.0,0.45307462]
[1730993085496,1.65846361,75380.0,75379.0,0.45307462]
[1730993085670,1.65846361,75380.0,75379.0,0.001666]
[1730993085885,1.65846361,75380.0,75359.0,0.19994268]
[1730993085886,0.232696,75360.0,75359.0,0.19994268]
[1730993086091,0.52043702,75360.0,75359.0,0.19994268]
[1730993086515,0.132703,75356.0,75355.0,0.005]
[1730993086735,0.51998379,75360.0,75356.0,0.005]
[1730993086930,0.498098,75358.0,75357.0,0.005]
[1730993087138,0.232701,75357.0,75356.0,0.005]
[1730993088403,0.132706,75354.0,75353.0,0.005]
[1730993088622,0.132706,75354.0,75353.0,0.01]
[1730993089030,0.26494877,75354.0,75353.0,0.015]
[1730993089695,0.132706,75354.0,75353.0,0.015]
[1730993090109,0.53036102,75354.0,75353.0,0.005]
[1730993090363,0.54436102,75354.0,75353.0,0.006]
[1730993090595,0.14624102,75354.0,75353.0,0.006]
[1730993090811,0.29294702,75354.0,75353.0,0.006]
[1730993091214,0.33555553,75354.0,75353.0,0.006]
[1730993091583,0.07060851,75354.0,75353.0,0.006]
[1730993091779,0.07060851,75354.0,75353.0,0.012666]
[1730993091999,0.07060851,75354.0,75353.0,0.017666]
[1730993092851,0.07060851,75354.0,75353.0,0.019666]
[1730993093073,0.07060851,75354.0,75353.0,0.017666]
[1730993093825,0.028,75354.0,75353.0,0.017666]
[1730993094087,0.028,75354.0,75353.0,0.150374]
[1730993094202,0.028,75354.0,75353.0,0.231274]
[1730993095334,0.028,75354.0,75353.0,0.098566]
[1730993095970,0.028,75354.0,75353.0,0.100566]
[1730993096088,0.028,75354.0,75353.0,0.098566]
[1730993100812,0.028,75354.0,75353.0,0.100566]
[1730993100958,0.028,75354.0,75353.0,0.233274]
[1730993101978,0.028,75354.0,75353.0,0.100566]
[1730993102405,0.33551937,75354.0,75353.0,0.007666]
[1730993102799,0.33551937,75354.0,75353.0,0.002666]
[1730993104090,0.68635121,75354.0,75353.0,0.002666]
[1730993104325,0.66335121,75354.0,75353.0,0.002666]
[1730993104568,0.61841838,75354.0,75353.0,0.002666]
[1730993104774,0.53919427,75354.0,75353.0,0.002666]
[1730993104980,0.52519427,75354.0,75353.0,0.001666]
[1730993105187,1.14343704,75354.0,75353.0,0.001666]
[1730993105365,1.25964679,75354.0,75353.0,0.002666]
[1730993105598,1.27364679,75354.0,75353.0,0.002666]
[1730993105847,1.25964679,75354.0,75353.0,0.001666]
[1730993106262,0.53917991,75354.0,75353.0,0.002666]
[1730993106471,0.45235938,75354.0,75353.0,0.002666]
[1730993106901,0.39294702,75354.0,75353.0,0.002666]
[1730993107126,0.45235938,75354.0,75353.0,0.002666]
[1730993107320,0.51118979,75354.0,75353.0,0.002666]
[1730993107437,0.37894702,75354.0,75353.0,0.002666]
[1730993107639,0.028,75354.0,75353.0,0.012666]
[1730993107851,0.014,75354.0,75353.0,0.016666]
[1730993108258,0.028,75354.0,75353.0,0.016666]
[1730993108499,0.05,75370.0,75369.0,0.015]
[1730993108746,0.05,75370.0,75369.0,0.27818]
[1730993108958,0.05,75370.0,75369.0,0.48127542]
[1730993109823,0.1555,75384.0,75379.0,0.149662]
[1730993110257,0.1555,75384.0,75379.0,0.017]
[1730993111345,0.115025,75380.0,75379.0,0.150662]
[1730993111756,0.115025,75380.0,75379.0,0.016]
[1730993112105,0.115025,75380.0,75379.0,0.018]
[1730993112363,0.126025,75380.0,75379.0,0.017]
[1730993112570,0.126025,75380.0,75379.0,0.007]
[1730993112571,0.39092702,75380.0,75379.0,0.007]
[1730993114459,0.37692702,75380.0,75379.0,0.006]
[1730993114750,0.37692702,75380.0,75379.0,0.001]
[1730993114964,0.37692702,75380.0,75360.0,0.001]
[1730993114965,0.132678,75370.0,75369.0,0.01]
[1730993115204,0.03960186,75376.0,75369.0,0.01]
[1730993115409,0.102025,75380.0,75376.0,0.01]
[1730993115605,0.103025,75380.0,75379.0,0.016]
[1730993115937,0.103025,75380.0,75379.0,0.017]
[1730993116768,0.101025,75380.0,75379.0,0.016]
[1730993117174,0.101025,75380.0,75379.0,0.015]
[1730993117608,0.129025,75380.0,75379.0,0.015]
[1730993117763,0.115025,75380.0,75379.0,0.015]
[1730993117967,0.101025,75380.0,75379.0,0.015]
[1730993118169,0.129025,75380.0,75379.0,0.015]
[1730993118492,0.115025,75380.0,75379.0,0.015]
[1730993118664,0.101025,75380.0,75379.0,0.015]
[1730993119093,0.115025,75380.0,75379.0,0.015]
[1730993120391,0.129025,75380.0,75379.0,0.015]
[1730993120602,0.115025,75380.0,75379.0,0.015]
[1730993120855,0.101025,75380.0,75379.0,0.015]
[1730993121090,0.101025,75380.0,75379.0,0.016]
[1730993121236,0.101025,75380.0,75379.0,0.017]
[1730993121654,0.115025,75380.0,75379.0,0.0973]
[1730993121909,0.101025,75380.0,75379.0,0.0973]
[1730993122024,0.101025,75380.0,75379.0,0.10723]
[1730993122413,0.129025,75380.0,75379.0,0.0973]
[1730993122600,0.115025,75380.0,75379.0,0.0973]
[1730993123957,0.101025,75380.0,75379.0,0.0993]
[1730993124374,0.101025,75380.0,75379.0,0.1003]
[1730993124592,0.101025,75380.0,75379.0,0.1023]
[1730993125624,0.101025,75380.0,75379.0,0.1003]
[1730993125832,0.101025,75380.0,75379.0,0.018]
[1730993126273,0.101025,75380.0,75379.0,0.02]
[1730993126709,0.101025,75380.0,75379.0,0.0197]
[1730993126929,0.233686,75380.0,75379.0,0.0117]
[1730993127136,0.101025,75380.0,75379.0,0.0147]
[1730993127353,0.115025,75380.0,75379.0,0.0147]
[1730993129326,0.129025,75380.0,75379.0,0.0147]
[1730993130186,0.115025,75380.0,75379.0,0.0147]
[1730993130656,0.115025,75380.0,75379.0,0.0167]
[1730993130873,0.129025,75380.0,75379.0,0.0167]
[1730993131325,0.115025,75380.0,75379.0,0.0167]
[1730993131578,0.101025,75380.0,75379.0,0.0187]
[1730993132017,0.101025,75380.0,75379.0,0.0197]
[1730993132915,0.101025,75380.0,75379.0,0.52357286]
[1730993133127,0.024493,75380.0,75379.0,0.57819546]
[1730993133302,0.19994268,75399.0,75398.0,0.1047]
[1730993133876,4e-05,75400.0,75399.0,0.0167]
[1730993134562,4e-05,75400.0,75399.0,0.0217]
[1730993134803,4e-05,75400.0,75399.0,0.02435235]
[1730993134963,0.00104,75400.0,75399.0,0.07001526]
[1730993135167,0.00204,75400.0,75399.0,0.07101526]
[1730993135577,0.00104,75400.0,75399.0,0.07001526]
[1730993136201,4e-05,75400.0,75399.0,0.06801526]
[1730993136624,0.00104,75400.0,75399.0,0.07401526]
[1730993136838,0.00104,75400.0,75399.0,0.21125628]
[1730993137040,4e-05,75400.0,75399.0,0.20760393]
[1730993137258,0.001873,75400.0,75399.0,0.21360393]
[1730993137946,0.002873,75400.0,75399.0,0.17594102]
[1730993139916,0.002873,75400.0,75399.0,0.17794102]
[1730993140326,0.002873,75400.0,75399.0,0.17859288]
[1730993140705,0.002873,75400.0,75399.0,0.17594102]
[1730993141117,0.002873,75400.0,75399.0,0.019]
[1730993141327,0.002873,75400.0,75399.0,0.0337]
[1730993141639,0.002873,75400.0,75399.0,0.17859324]
[1730993141880,0.002873,75400.0,75399.0,0.21658353]
[1730993143501,0.002873,75400.0,75399.0,0.17594102]
[1730993145664,0.002873,75400.0,75399.0,0.0337]
[1730993146487,0.135498,75400.0,75399.0,0.0267]
[1730993146779,0.135498,75400.0,75399.0,0.0287]
[1730993146780,0.002873,75400.0,75399.0,0.0287]
[1730993146972,0.135498,75400.0,75399.0,0.0267]
[1730993147405,0.001873,75400.0,75399.0,0.0207]
[1730993147609,0.100873,75400.0,75399.0,0.0147]
[1730993148057,0.114873,75400.0,75399.0,0.0147]
[1730993148286,0.114873,75400.0,75399.0,0.0167]
[1730993148700,0.128873,75400.0,75399.0,0.0167]
[1730993149389,0.114873,75400.0,75399.0,0.0167]
[1730993149638,0.128873,75400.0,75399.0,0.0167]
[1730993149851,0.261498,75400.0,75399.0,0.0147]
[1730993150052,0.128873,75400.0,75399.0,0.0147]
[1730993150433,0.128873,75400.0,75399.0,0.0167]
[1730993150654,0.128873,75400.0,75399.0,0.0147]
[1730993153700,0.261498,75400.0,75399.0,0.0147]
[1730993154405,0.128873,75400.0,75399.0,0.0147]
[1730993155048,0.261498,75400.0,75399.0,0.0147]
[1730993155471,0.128873,75400.0,75399.0,0.0147]
[1730993155888,0.261498,75400.0,75399.0,0.0147]
[1730993156539,0.128873,75400.0,75399.0,0.0147]
[1730993156919,0.261498,75400.0,75399.0,0.0147]
[1730993157153,0.128873,75400.0,75399.0,0.0147]
[1730993157354,0.261498,75400.0,75399.0,0.0147]
[1730993157737,0.128873,75400.0,75399.0,0.02691228]
[1730993158114,0.261498,75400.0,75399.0,0.0097]
[1730993158828,0.261498,75400.0,75399.0,0.005]
[1730993159401,0.261498,75400.0,75399.0,0.007]
[1730993159637,0.128873,75400.0,75399.0,0.012]
[1730993159862,0.261498,75400.0,75399.0,0.012]
[1730993160277,0.261498,75400.0,75399.0,0.0167]
[1730993160493,0.261498,75400.0,75399.0,0.02892606]
[1730993160928,0.261498,75400.0,75399.0,0.02192606]
[1730993161337,0.261498,75400.0,75399.0,0.0097]
[1730993161789,0.128873,75400.0,75399.0,0.17616678]
[1730993162063,0.128873,75400.0,75399.0,0.19428346]
[1730993163178,0.128873,75400.0,75399.0,0.17616678]
[1730993163820,0.128873,75400.0,75399.0,0.03392576]
[1730993164042,0.128873,75400.0,75399.0,0.033921]
[1730993164043,0.100873,75400.0,75399.0,0.033921]
[1730993164477,0.128873,75400.0,75399.0,0.033921]
[1730993164680,0.128873,75400.0,75399.0,0.0217]
[1730993164899,0.100873,75400.0,75399.0,0.03392666]
[1730993165070,0.101873,75400.0,75399.0,0.03792666]
[1730993165294,0.102873,75400.0,75399.0,0.04292666]
[1730993165464,0.101873,75400.0,75399.0,0.03892666]
[1730993165868,0.114873,75400.0,75399.0,0.03392666]
[1730993166069,0.114873,75400.0,75399.0,0.03192666]
[1730993166198,0.114873,75400.0,75399.0,0.02392666]
[1730993166405,0.114873,75400.0,75399.0,0.02892666]
[1730993166614,0.247498,75400.0,75399.0,0.0167]
[1730993167160,0.114873,75400.0,75399.0,0.0167]
[1730993167814,0.114873,75400.0,75399.0,0.0147]
[1730993168032,0.128873,75400.0,75399.0,0.03193124]
[1730993168252,0.128873,75400.0,75399.0,0.24997226]
[1730993168253,0.114873,75400.0,75399.0,0.24997226]
[1730993168436,0.114873,75400.0,75399.0,0.29822833]